bitfinex-derivatives/quotes_BNBF0:USTF0_20250302
["timestamp","ask_amount","ask_price","bid_price","bid_amount"]
[1740936671110,0.26645594,629.97,628.38,1.12256236]
[1740936671313,0.26645594,629.96,628.39,2.20737091]
[1740936671512,0.26645594,629.99,628.4,1.12256236]
[1740936671707,1.41446031,630.0,628.41,0.8304598]
[1740936671905,1.41446031,630.0,628.42,1.12249769]
[1740936672107,0.26687944,629.99,628.43,1.12249769]
[1740936672308,0.26687944,629.99,628.44,1.12249769]
[1740936672509,0.26687944,629.99,628.45,2.20730624]
[1740936672708,1.41446031,630.0,628.46,0.8304598]
[1740936672907,1.41446031,630.0,628.47,1.12249769]
[1740936673107,1.41446031,630.0,628.48,1.12249769]
[1740936673309,1.41446031,630.0,628.49,1.12249769]
[1740936673504,1.41446031,630.0,628.5,1.91526835]
[1740936673710,1.41446031,630.0,628.51,1.12249769]
[1740936674010,1.41446031,630.0,628.52,1.12249769]
[1740936674212,1.41446031,630.0,628.53,1.12249769]
[1740936674414,1.41446031,630.0,628.54,1.12249769]
[1740936674605,1.41446031,630.0,628.55,1.12249769]
[1740936674811,1.41446031,630.0,628.56,2.20730624]
[1740936675114,1.41446031,630.0,628.57,1.12249769]
[1740936675314,1.41446031,630.0,628.58,2.20730624]
[1740936675511,1.097,630.0,628.59,1.12249769]
[1740936675711,1.097,630.0,628.6,1.12249769]
[1740936675907,1.097,630.0,628.61,1.12249769]
[1740936676112,1.097,630.0,628.62,1.12249769]
[1740936676308,1.097,630.0,628.63,1.11218201]
[1740936676510,1.097,630.0,628.64,1.11218201]
[1740936676710,2.38027352,633.2,628.65,1.11218201]
[1740936676910,0.26718349,633.19,628.66,1.11218201]
[1740936677114,0.26718349,633.19,628.67,0.82014412]
[1740936677313,0.26718349,633.18,628.67,0.29203789]
[1740936677510,0.26718349,633.18,628.68,1.08480855]
[1740936678209,0.26718349,633.18,628.42,1.15047448]
[1740936678210,0.26718349,633.17,628.69,1.37684644]
[1740936678412,0.26718349,633.16,628.69,1.08480855]
[1740936678614,0.26718349,633.15,628.7,1.08480855]
[1740936678915,0.26718349,633.14,628.7,1.08480855]
[1740936679108,0.26718349,633.13,628.42,1.15047448]
[1740936679309,0.26718349,633.12,628.42,1.15047448]
[1740936679511,0.26718349,633.11,628.42,1.15047448]
[1740936679709,0.26718349,633.1,628.43,1.0652242]
[1740936680017,0.26718349,633.09,628.43,1.0652242]
[1740936680215,0.26718349,633.08,628.43,1.0652242]
[1740936680412,0.31603065,632.85,628.44,1.0652242]
[1740936680612,0.26718349,632.84,628.44,1.0652242]
[1740936680810,0.26718349,632.83,628.42,1.15047448]
[1740936681014,0.26718349,632.82,628.45,2.26264987]
[1740936681211,0.31603065,632.85,628.45,1.198]
[1740936681513,0.26743827,632.81,628.46,1.06464987]
[1740936681716,0.26743827,632.8,628.47,0.81872431]
[1740936681911,0.26743827,632.79,628.47,4.03264987]
[1740936682117,0.26743827,632.78,628.48,1.11081898]
[1740936682317,0.26743827,632.77,628.49,1.11081898]
[1740936682517,0.26743827,632.76,628.5,1.11081898]
[1740936682718,0.26743827,632.75,628.48,1.06464987]
[1740936682912,0.26743827,632.74,628.51,1.06464987]
[1740936683113,0.26743827,632.73,628.49,1.06464987]
[1740936683314,0.26743827,632.72,628.5,2.17455693]
[1740936683515,0.26743827,632.71,628.51,0.29210782]
[1740936683714,0.26743827,632.71,628.47,2.968]
[1740936683715,0.26743827,632.7,628.52,1.06464987]
[1740936683912,0.26743827,632.69,628.52,1.06464987]
[1740936684116,0.26743827,632.68,628.53,1.06464987]
[1740936684313,0.26743827,632.67,628.53,1.06464987]
[1740936684512,0.26743827,632.66,628.53,1.06464987]
[1740936684818,0.31603065,632.85,628.47,2.968]
[1740936684819,0.26743827,632.65,628.54,1.06464987]
[1740936685014,0.26743827,632.64,628.54,1.06464987]
[1740936685215,0.26743827,632.63,628.55,0.81771913]
[1740936685414,0.26743827,632.62,628.55,1.06464987]
[1740936685618,0.26743827,632.61,628.55,1.06464987]
[1740936685820,0.26743827,632.6,628.56,1.06464987]
[1740936686120,0.26743827,632.59,628.57,1.06464987]
[1740936686313,0.26743827,632.58,628.57,1.06464987]
[1740936686513,0.26743827,632.57,628.47,2.968]
[1740936686717,0.26743827,632.56,628.48,0.29204747]
[1740936686914,0.26743827,632.55,628.48,0.29204747]
[1740936687114,0.26743827,632.54,628.48,0.29204747]
[1740936687314,0.26743827,632.53,628.48,0.29204747]
[1740936687519,0.26743827,632.52,628.48,0.29204747]
[1740936687718,0.26743827,632.51,628.48,0.29204747]
[1740936687919,0.26743827,632.5,628.48,0.29204747]
[1740936688219,0.31603065,632.85,628.48,0.29204747]
[1740936688220,0.26743827,632.49,628.48,0.29204747]
[1740936688419,0.26743827,632.48,628.48,0.29204747]
[1740936688718,0.26743827,632.47,628.49,0.29204747]
[1740936688919,0.26743827,632.46,628.5,0.29204747]
[1740936689118,0.26743827,632.45,628.51,0.29204747]
[1740936689318,0.26743827,632.44,628.52,0.29204747]
[1740936689521,0.26743827,632.43,628.53,0.29204747]
[1740936689718,0.26743827,632.42,628.54,0.29204747]
[1740936689919,0.26743827,632.41,628.55,0.29204747]
[1740936690119,0.26743827,632.4,628.54,0.29204747]
[1740936690320,0.26743827,632.39,628.56,1.05835632]
[1740936690512,0.26743827,632.38,628.57,0.29204747]
[1740936690714,0.26743827,632.37,628.57,0.29204747]
[1740936690913,0.26743827,632.36,628.57,0.29204747]
[1740936691114,0.31603065,632.85,628.49,0.29204747]
[1740936691115,0.26743827,632.35,628.49,0.29204747]
[1740936691419,0.26743827,632.35,628.48,0.62979245]
[1740936691420,0.31603065,632.85,628.5,1.05754004]
[1740936691720,0.26710729,632.84,628.51,1.34939251]
[1740936692019,0.31603065,632.85,628.47,2.968]
[1740936692020,0.31603065,632.85,628.52,1.05754004]
[1740936692220,0.26710553,632.84,628.53,0.29185076]
[1740936692419,0.26710553,632.83,628.53,0.29185076]
[1740936692622,0.26710553,632.82,628.54,0.29185076]
[1740936692816,0.26710553,632.81,628.55,0.29185076]
[1740936693018,0.26710553,632.8,628.56,0.29185076]
[1740936693217,0.26710553,632.79,628.49,0.29185076]
[1740936693424,0.26710553,632.79,628.48,1.65741909]
[1740936693425,0.26710553,632.78,628.5,0.29185076]
[1740936693619,0.26710553,632.77,628.49,0.29185076]
[1740936693820,0.26710553,632.76,628.5,0.29185076]
[1740936694117,0.26710553,632.75,628.51,0.29185076]
[1740936694323,0.31603065,632.85,628.48,1.65741909]
[1740936694324,0.26710553,632.74,628.48,1.65741909]
[1740936694621,0.26710553,632.73,628.48,1.65741909]
[1740936694823,0.26710553,632.72,628.48,1.65741909]
[1740936695017,0.26710553,632.71,628.48,1.65741909]
[1740936695215,0.26710553,632.7,628.48,1.65741909]
[1740936695416,0.26710553,632.69,628.48,1.65741909]
[1740936695619,0.26710553,632.68,628.47,2.968]
[1740936695822,0.26710553,632.67,628.48,0.29208273]
[1740936696023,0.26710553,632.66,628.48,0.29208273]
[1740936696323,0.26710553,632.65,628.48,0.29208273]
[1740936696523,0.26710553,632.64,628.48,0.29208273]
[1740936697024,2.39249912,632.29,628.49,1.433]
[1740936697217,0.26710553,632.28,628.5,0.29208273]
[1740936697415,0.26710553,632.27,628.5,0.29208273]
[1740936697616,0.26710553,632.26,628.5,0.29208273]
[1740936697923,0.26710553,632.25,628.5,0.29208273]
[1740936698117,0.26710553,632.24,628.5,0.29208273]
[1740936698317,2.39249912,632.29,628.5,0.29208273]
[1740936698318,0.26710553,632.23,628.5,0.29208273]
[1740936698516,0.26710553,632.22,628.49,1.433]
[1740936698717,0.26710553,632.21,628.49,1.433]
[1740936698925,0.26710553,632.2,628.5,0.29201819]
[1740936699124,0.26710553,632.19,628.5,0.29201819]
[1740936699420,0.26710553,632.18,628.51,0.29201819]
[1740936699725,0.26710553,632.17,628.52,1.34616124]
[1740936699919,0.31603065,632.85,628.53,1.10267961]
[1740936699920,2.39249912,631.0,628.53,1.10267961]
[1740936700126,2.39249912,631.0,628.54,0.81066142]
[1740936700321,0.26710553,630.99,628.55,2.15682266]
[1740936700621,0.26710553,630.98,628.56,0.29201819]
[1740936700923,0.26710553,630.97,628.57,0.29201819]
[1740936701118,0.26710553,630.96,628.57,0.29201819]
[1740936701317,0.26710553,630.95,628.5,0.29201819]
[1740936701522,0.26710553,630.94,628.58,0.29201819]
[1740936701718,0.26710553,630.94,628.51,0.29201819]
[1740936701922,0.26710553,630.93,628.52,0.29201819]
[1740936702124,0.26710553,630.92,628.53,0.29201819]
[1740936702324,0.26710553,630.91,628.54,0.29201819]
[1740936702524,0.26710553,630.9,628.55,0.29201819]
[1740936702719,0.26710553,630.89,628.5,0.29201819]
[1740936702919,0.26710553,630.88,628.51,0.29201819]
[1740936703116,0.26710553,630.87,628.5,0.29201819]
[1740936703324,0.26710553,630.86,628.51,0.29201819]
[1740936703624,0.26710553,630.85,628.52,0.29201819]
[1740936703824,0.26710553,630.84,628.49,1.433]
[1740936704124,0.26710553,630.83,628.49,1.433]
[1740936704325,0.26710553,630.82,628.49,1.433]
[1740936704525,0.26710553,630.81,628.51,0.31821291]
[1740936704726,0.26710553,630.8,628.52,0.2920308]
[1740936704927,0.26710553,630.79,628.52,0.2920308]
[1740936705124,0.26710553,630.78,628.52,0.2920308]
[1740936705325,0.26710553,630.77,628.52,0.2920308]
[1740936705526,0.26710553,630.76,628.52,0.2920308]
[1740936705725,0.26710553,630.75,628.52,0.2920308]
[1740936705928,0.26710553,630.74,628.52,0.2920308]
[1740936706227,2.39249912,631.61,628.52,0.2920308]
[1740936706228,0.26710553,630.73,628.52,0.2920308]
[1740936706422,0.26710553,630.72,628.52,0.2920308]
[1740936706625,0.26710553,630.71,628.52,0.2920308]
[1740936706825,0.26710553,630.71,628.51,0.31821291]
[1740936706826,2.39249912,631.31,628.65,1.1659557]
[1740936707027,0.26730939,631.3,628.65,1.1659557]
[1740936707226,0.26730939,631.29,628.65,1.1659557]
[1740936707424,0.26730939,631.28,628.65,1.1659557]
[1740936707728,0.26730939,631.27,628.66,1.10684313]
[1740936707928,0.26730939,631.26,628.67,0.81486165]
[1740936708132,0.26730939,631.25,628.68,1.10685652]
[1740936708329,0.26730939,631.24,628.69,1.10685652]
[1740936708526,0.26730939,631.23,628.7,0.81486165]
[1740936708721,2.39249912,631.85,628.73,1.1659557]
[1740936708924,0.26720969,631.84,628.74,0.81486165]
[1740936709128,0.26720969,631.83,628.75,0.29197006]
[1740936709324,0.26720969,631.82,628.76,0.81641557]
[1740936709522,0.26720969,631.81,628.76,1.05904312]
[1740936709725,0.26720969,631.8,628.76,1.05904312]
[1740936709928,0.26720969,631.79,628.76,1.05904312]
[1740936710129,0.26720969,631.78,628.76,1.05904312]
[1740936710325,0.26720969,631.77,628.77,1.673]
[1740936710527,2.39249912,631.85,628.77,1.673]
[1740936710728,2.39249912,631.72,628.77,1.673]
[1740936710928,0.26731597,631.71,628.77,1.673]
[1740936711226,0.26731597,631.7,628.77,1.673]
[1740936711431,0.26731597,631.69,628.77,1.673]
[1740936711731,0.26731597,631.68,628.77,1.673]
[1740936711929,0.26731597,631.67,628.77,1.673]
[1740936712231,0.26731597,631.66,628.77,3.142]
[1740936712424,0.26731597,631.65,628.77,3.142]
[1740936712630,0.26731597,631.64,628.77,3.142]
[1740936712828,0.26731597,631.63,628.77,3.142]
[1740936713028,0.26731597,631.62,628.77,3.142]
[1740936713229,2.39249912,631.72,628.77,3.142]
[1740936713230,0.26731597,631.61,628.77,3.142]
[1740936713430,0.26731597,631.6,628.77,3.142]
[1740936713734,2.39249912,631.72,628.77,3.142]
[1740936713735,2.39249912,631.15,628.77,3.142]
[1740936714031,0.26731597,631.14,628.77,3.142]
[1740936714226,0.26731597,631.13,628.77,3.142]
[1740936714425,0.26731597,631.12,628.77,3.142]
[1740936714628,0.26731597,631.11,628.77,3.142]
[1740936714828,0.26731597,631.1,628.77,3.142]
[1740936715030,0.26731597,631.09,628.77,3.142]
[1740936715331,0.26731597,631.08,628.77,3.142]
[1740936715630,0.26731597,631.07,628.77,3.142]
[1740936715824,0.26726592,631.06,628.77,3.142]
[1740936716028,0.26726592,631.05,628.77,3.142]
[1740936716224,0.26726592,631.04,628.78,1.06488803]
[1740936716430,0.26726592,631.03,628.79,0.2919842]
[1740936716626,0.26726592,631.02,628.79,0.2919842]
[1740936716826,0.26726592,631.01,628.8,1.06488803]
[1740936717025,0.26726592,631.0,628.81,0.2919842]
[1740936717229,0.26726592,630.99,628.82,1.88403351]
[1740936717526,0.26726592,630.99,628.77,3.142]
[1740936717527,0.26716713,630.98,628.83,1.11105915]
[1740936717731,0.26716713,630.97,628.84,1.11105915]
[1740936717930,0.26716713,630.96,628.85,1.11105915]
[1740936718131,0.26716713,630.95,628.86,1.11105915]
[1740936718332,0.26716713,630.94,628.87,1.11105915]
[1740936718630,0.26716713,630.94,628.77,3.142]
[1740936718631,0.26716713,630.93,628.88,1.88497491]
[1740936718831,0.26716713,630.92,628.89,1.11101245]
[1740936719032,0.26716713,630.91,628.9,1.11101245]
[1740936719327,2.39249912,631.96,628.89,1.06582943]
[1740936719328,0.26716713,630.9,628.91,1.11101245]
[1740936719530,0.26716713,630.89,628.92,1.11101245]
[1740936719726,0.26716713,630.88,628.93,1.11101245]
[1740936719928,0.26716713,630.87,628.94,1.11101245]
[1740936720129,0.26716713,630.86,628.95,2.17684188]
[1740936720330,2.39249912,631.49,628.96,0.81914548]
[1740936720633,0.26699727,631.48,628.97,0.29174195]
[1740936720828,0.26699727,631.47,628.98,1.88497491]
[1740936721133,0.26699727,631.46,628.99,2.1776509]
[1740936721328,0.26699727,631.45,629.0,1.11182147]
[1740936721636,0.26699727,631.44,629.01,1.11182147]
[1740936721933,0.26699727,631.43,629.02,2.1776509]
[1740936722134,0.26699727,631.42,629.03,1.11182147]
[1740936722328,2.39249912,631.49,628.78,0.62743753]
[1740936722329,0.26699727,631.41,629.04,2.1776509]
[1740936722534,0.26699727,631.4,629.05,2.1776509]
[1740936722829,0.26699727,631.39,629.06,2.1776509]
[1740936723034,0.26699727,631.38,629.07,1.11182147]
[1740936723335,0.26699727,631.37,629.08,2.1776509]
[1740936723634,0.26690226,631.36,629.09,2.17755417]
[1740936723834,0.26690226,631.35,629.1,1.11172474]
[1740936724035,0.26690226,631.34,629.11,2.17755417]
[1740936724233,0.26690226,631.33,629.12,1.11172474]
[1740936724438,1.533,631.33,629.13,2.17755417]
[1740936724738,0.26690226,631.32,629.14,2.17755417]
[1740936725035,0.26690226,631.32,629.15,1.11172474]
[1740936725236,0.26690226,631.32,629.16,2.17755417]
[1740936725436,0.26690226,631.32,629.17,0.29164522]
[1740936725635,0.26690226,631.32,629.18,1.06582943]
[1740936725930,0.26690226,631.31,629.19,0.29168732]
[1740936726137,0.26690226,631.3,629.19,1.35751675]
[1740936726430,0.26690226,631.3,628.94,1.65726123]
[1740936726431,0.26690226,631.29,629.29,0.31781849]
[1740936726634,0.26690226,631.28,629.3,0.29168732]
[1740936726831,0.26690226,631.27,629.3,1.35751675]
[1740936727035,1.533,631.33,629.31,1.10914254]
[1740936727036,0.26690226,631.32,629.31,1.10914254]
[1740936727231,0.26690226,631.32,629.32,1.10932508]
[1740936727430,0.26690226,631.32,629.33,1.10932508]
[1740936727736,0.26683899,631.31,629.34,0.29158101]
[1740936728037,0.26683899,631.3,629.35,1.38361762]
[1740936728237,0.26683899,631.32,629.36,1.10879943]
[1740936728435,0.26683899,631.31,629.37,1.10879943]
[1740936728636,0.26683899,631.32,629.38,1.10879943]
[1740936728837,0.26683899,631.3,629.39,1.10879943]
[1740936729135,1.533,631.33,629.4,1.10879943]
[1740936729336,1.533,631.33,629.41,1.10879943]
[1740936729540,1.533,631.33,629.42,1.10879943]
[1740936729541,0.26662461,631.32,629.42,1.10879943]
[1740936729734,1.533,631.33,629.43,1.10879943]
[1740936729937,1.533,631.33,629.44,2.17462886]
[1740936730137,1.533,631.33,629.45,1.10879943]
[1740936730338,1.533,631.33,629.46,1.10879943]
[1740936730640,1.533,631.33,629.47,2.17462886]
[1740936730838,1.533,631.33,629.48,1.10879943]
[1740936731043,1.533,631.33,629.49,1.10879943]
[1740936731234,1.533,631.33,629.5,1.10879943]
[1740936731435,1.533,631.33,629.51,1.10879943]
[1740936731641,0.26667349,631.32,629.52,1.10879943]
[1740936731834,1.533,631.33,629.53,1.88304785]
[1740936732035,0.26670337,631.32,629.54,1.10866145]
[1740936732342,0.26670337,631.32,629.55,2.17449088]
[1740936732540,0.26670337,631.32,629.56,1.10866145]
[1740936732740,0.26670337,631.32,629.57,1.10866145]
[1740936732939,0.26670337,631.32,629.58,2.17449088]
[1740936733139,0.26670337,631.32,629.59,1.10866145]
[1740936733341,0.26670337,631.32,629.6,1.10866145]
[1740936733536,0.26661821,631.31,629.61,1.1085753]
[1740936733739,0.26661821,631.31,629.6,1.06582943]
[1740936733740,0.26661821,631.32,629.62,1.1085753]
[1740936733939,0.26661821,631.31,629.63,1.1085753]
[1740936734137,0.26661821,631.32,629.64,1.1085753]
[1740936734439,0.26661821,631.31,629.65,0.29135688]
[1740936734644,1.533,631.33,629.37,1.077]
[1740936734645,0.26661821,631.32,629.66,1.06582943]
[1740936734838,0.26661821,631.31,629.66,1.06582943]
[1740936735041,0.26661821,631.3,629.37,1.077]
[1740936735242,0.26661821,631.32,629.38,1.10033255]
[1740936735442,0.26661821,631.32,629.38,1.05102163]
[1740936735642,0.26661821,631.32,629.39,0.80854978]
[1740936735842,0.26661821,631.32,629.4,0.80854978]
[1740936736040,0.26661821,631.32,629.41,0.80854978]
[1740936736342,0.26661821,631.32,629.42,1.85957141]
[1740936736539,0.26661821,631.32,629.43,0.80854978]
[1740936736844,0.26661821,631.32,629.44,0.80854978]
[1740936737037,0.26661821,631.32,629.43,1.05102163]
[1740936737242,1.533,631.33,629.43,1.05102163]
[1740936737243,0.2668942,631.31,629.45,1.448]
[1740936737546,0.2668942,631.3,629.46,0.2916692]
[1740936737744,0.2668942,631.3,629.45,1.448]
[1740936738045,0.2668942,631.29,629.45,1.448]
[1740936738346,1.533,631.33,629.46,1.05221557]
[1740936738742,0.2670216,631.32,629.45,1.448]
[1740936738939,0.2670216,631.31,629.45,1.448]
[1740936739145,1.533,631.33,629.45,1.448]
[1740936739343,0.26701914,631.32,629.45,1.448]
[1740936739543,0.26701914,631.31,629.45,1.448]
[1740936739744,0.26701914,631.3,629.45,1.448]
[1740936739945,0.26701914,631.29,629.45,1.448]
[1740936740141,0.26701914,631.28,629.45,1.448]
[1740936740449,0.26701914,631.27,629.45,1.448]
[1740936740648,0.26701914,631.26,629.45,1.448]
[1740936741046,0.26701914,631.25,629.45,1.448]
[1740936741247,0.26701914,631.24,629.45,1.448]
[1740936741448,0.26701914,631.23,629.45,1.448]
[1740936741649,1.533,631.33,629.45,1.448]
[1740936741650,0.26701914,631.22,629.45,1.448]
[1740936741844,0.26701914,631.21,629.45,1.448]
[1740936742048,0.26701914,631.2,629.45,1.448]
[1740936742250,0.26701914,631.19,629.45,1.448]
[1740936742449,1.533,631.33,629.45,1.448]
[1740936742450,0.26701914,631.18,629.45,1.448]
[1740936742643,0.26701914,631.17,629.45,1.448]
[1740936742846,0.26701914,631.16,629.45,1.448]
[1740936743049,0.26701914,631.15,629.45,1.448]
[1740936743244,0.26701914,631.14,629.45,1.448]
[1740936743443,0.26701914,631.13,629.45,1.448]
[1740936743650,0.26701914,631.12,629.45,1.448]
[1740936743850,0.26701914,631.11,629.46,1.059]
[1740936744050,0.26701914,631.1,629.46,1.059]
[1740936744250,0.26701914,631.09,629.46,1.059]
[1740936744452,0.26701914,631.08,629.46,1.059]
[1740936744644,0.26701914,631.07,629.46,1.059]
[1740936744844,0.26701914,631.06,629.46,1.059]
[1740936745048,0.26701914,631.05,629.46,1.059]
[1740936745650,2.39249912,633.08,629.46,1.059]
[1740936745852,0.26712441,631.04,629.46,1.059]
[1740936746151,0.26713125,631.03,629.46,1.059]
[1740936746343,0.26713125,631.02,629.46,1.059]
[1740936746547,0.26713125,631.01,629.46,1.059]
[1740936746747,0.26713125,631.0,629.46,1.059]
[1740936746950,0.26713125,630.99,629.46,1.059]
[1740936747148,0.26713125,630.98,629.46,1.059]
[1740936747350,0.26713125,631.03,629.46,1.059]
[1740936747552,1.281,630.97,629.46,1.059]
[1740936747851,0.26713125,630.96,629.46,1.059]
[1740936748049,0.26713125,630.95,629.46,1.059]
[1740936748251,0.26713125,630.94,629.46,1.059]
[1740936748552,0.26713125,630.93,629.46,1.059]
[1740936748754,0.26713125,630.92,629.46,1.059]
[1740936748951,0.26713125,630.91,629.47,0.29171102]
[1740936749251,0.26713125,630.96,629.46,1.059]
[1740936749454,0.26713125,630.95,629.46,1.059]
[1740936749649,0.26713125,630.96,629.46,1.059]
[1740936749855,0.26713125,630.95,629.47,0.29166244]
[1740936750157,0.26713125,630.94,629.48,0.80948369]
[1740936750355,0.26713125,630.96,629.49,0.29166244]
[1740936750548,0.26713125,630.95,629.49,0.29166244]
[1740936750752,0.26713125,630.96,629.5,1.05196277]
[1740936750953,0.26686925,630.95,629.51,0.29161142]
[1740936751155,0.26686925,630.94,629.52,1.05196277]
[1740936751353,0.26686925,630.96,629.53,1.34357419]
[1740936751658,0.26686925,630.95,629.54,1.05196277]
[1740936751854,0.26686925,630.94,629.54,1.05196277]
[1740936752058,0.26686925,630.96,629.54,1.05196277]
[1740936752360,0.26686925,630.95,629.46,1.059]
[1740936752561,0.26686925,630.96,629.46,1.059]
[1740936752758,0.26686925,630.95,629.46,1.059]
[1740936753059,1.281,630.97,629.46,1.059]
[1740936753361,0.26695862,630.96,629.46,1.059]
[1740936753561,0.26695862,630.96,629.47,1.147]
[1740936754462,0.26689428,630.95,629.48,0.29163726]
[1740936754663,0.26689428,630.94,629.48,0.29163726]
[1740936754863,0.26689428,630.93,629.48,0.29163726]
[1740936755061,0.26689428,630.93,629.47,1.147]
[1740936755259,0.26689428,630.92,629.47,1.147]
[1740936755461,0.26689428,630.91,629.47,1.147]
[1740936755756,0.26689428,630.9,629.47,1.147]
[1740936755958,0.26689428,630.96,629.47,1.147]
[1740936756458,0.26689428,630.95,629.47,1.147]
[1740936756658,0.26689428,630.96,629.47,1.147]
[1740936756859,0.26689428,630.95,629.47,1.147]
[1740936757065,0.26689428,630.94,629.47,1.147]
[1740936757260,0.26689428,630.93,629.47,1.147]
[1740936757564,1.281,630.97,629.47,1.147]
[1740936757765,0.26696373,630.96,629.47,1.147]
[1740936758060,0.26696373,630.95,629.47,1.147]
[1740936758258,0.26696373,630.94,629.47,1.147]
[1740936758661,0.26696373,630.93,629.47,1.147]
[1740936758862,0.26696373,630.92,629.47,1.147]
[1740936759064,0.26696373,630.91,629.47,1.147]
[1740936759364,0.26696373,630.9,629.47,1.147]
[1740936759860,0.26708193,630.89,629.47,1.147]
[1740936760165,0.31702252,630.87,629.47,1.147]
[1740936760368,0.26708193,630.86,629.48,1.148]
[1740936760664,0.26708193,630.85,629.48,1.148]
[1740936760862,0.26708193,630.84,629.48,1.148]
[1740936761164,0.26708193,630.83,629.49,1.516]
[1740936761463,0.26708193,630.82,629.49,1.516]
[1740936761663,0.26708193,630.86,629.49,1.516]
[1740936761863,0.26708193,630.85,629.49,1.516]
[1740936762163,0.26708193,630.84,629.49,1.516]
[1740936762360,0.26708193,630.83,629.49,1.516]
[1740936762560,0.26708193,630.82,629.49,1.516]
[1740936762764,0.26711917,630.81,629.49,1.516]
[1740936762963,0.26711917,630.8,629.49,1.516]
[1740936763160,0.26711917,630.79,629.49,1.516]
[1740936763462,0.26711917,630.78,629.49,1.516]
[1740936763662,0.31702252,630.87,629.49,1.516]
[1740936763663,0.26711917,630.77,629.49,1.516]
[1740936763859,0.26711917,630.76,629.49,1.516]
[1740936764063,0.26711917,630.75,629.49,1.516]
[1740936764365,0.26715219,630.74,629.49,1.516]
[1740936764665,0.26715219,630.73,629.49,1.516]
[1740936764967,0.26715219,630.72,629.49,1.516]
[1740936765162,0.31710797,630.7,629.49,1.516]
[1740936765467,0.26715219,630.69,629.49,1.516]
[1740936765866,0.26715219,630.68,629.49,1.516]
[1740936766082,0.31712808,630.66,629.49,1.516]
[1740936766262,0.26715219,630.65,629.49,1.516]
[1740936766466,0.26715219,630.64,629.49,1.516]
[1740936766662,0.26715219,630.63,629.49,1.516]
[1740936766861,0.26715219,630.62,629.49,1.516]
[1740936767063,0.26715219,630.61,629.49,1.516]
[1740936767262,0.26715219,630.65,629.49,1.516]
[1740936768871,1.347,630.64,629.49,1.516]
[1740936769072,0.26715219,630.63,629.49,1.516]
[1740936772471,1.347,630.64,629.49,1.516]
[1740936772669,0.26706188,630.63,629.49,1.516]
[1740936775373,0.26706188,630.63,629.5,0.31771247]
[1740936777480,0.26699674,630.62,629.5,0.31771247]
[1740936777681,0.26699674,630.63,629.5,0.31771247]
[1740936777878,0.26699674,630.62,629.5,0.31771247]
[1740936778075,1.347,630.64,629.5,0.31771247]
[1740936778076,0.26699674,630.63,629.5,0.31771247]
[1740936778383,0.26699674,630.62,629.5,0.31771247]
[1740936778680,0.26699674,630.61,629.5,0.31771247]
[1740936778980,0.26699674,630.6,629.5,0.31771247]
[1740936779180,0.26699674,630.63,629.5,0.31771247]
[1740936779578,1.347,630.64,629.5,0.31771247]
[1740936779779,0.26707376,630.63,629.51,1.654]
[1740936782082,0.2669432,630.62,629.51,1.654]
[1740936782380,1.347,630.64,629.51,1.654]
[1740936782884,1.347,630.64,629.52,0.31770237]
[1740936783485,1.347,630.64,629.53,1.06259972]
[1740936784186,1.347,630.64,629.54,1.06259972]
[1740936784387,0.26694774,630.63,629.54,1.06259972]
[1740936784685,0.26694774,630.63,629.55,1.06259972]
[1740936784888,0.26694774,630.63,629.53,1.06259972]
[1740936786288,0.26694774,630.63,629.53,2.52559972]
[1740936786686,0.26694774,630.63,629.54,1.06259972]
[1740936786882,0.26694774,630.63,629.53,1.463]
[1740936786883,1.347,630.64,629.53,1.463]
[1740936787087,0.26700295,630.63,629.53,1.463]
[1740936787689,1.347,630.64,629.53,1.463]
[1740936787990,0.26705432,630.63,629.53,1.463]
[1740936790794,0.26705432,630.62,629.53,1.463]
[1740936790985,0.26705432,630.63,629.53,1.463]
[1740936794292,0.26705432,630.62,629.53,1.463]
[1740936794591,0.26705432,630.61,629.53,1.463]
[1740936794791,0.26705432,630.6,629.53,1.463]
[1740936794988,0.26705432,630.59,629.53,1.463]
[1740936795291,0.26705432,630.58,629.53,1.463]
[1740936795492,0.26705432,630.57,629.53,1.463]
[1740936795693,0.26705432,630.56,629.53,1.463]
[1740936795894,0.26705432,630.55,629.53,1.463]
[1740936796093,0.26705432,630.54,629.53,1.463]
[1740936796294,0.26705432,630.53,629.53,1.463]
[1740936796492,0.26705432,630.52,629.53,1.463]
[1740936796690,0.26705432,630.63,629.53,1.463]
[1740936796890,1.347,630.64,629.53,1.463]
[1740936797091,0.26722499,630.63,629.53,1.463]